Cogmind - Beta 14 @@@ ROGUE MODE // 2024.11.23 @ 23:36:57 Player: OctagonalPrism Result: Exoskeleton Destroyed Performance ------------- Evolutions (9) 4500 Regions Visited (22) 4400 Robots Destroyed (125) 625 Value Destroyed (3469) 3469 Prototype IDs (81) 1620 Alien Tech Used (9) 1800 Bonus (14408) 14408 TOTAL SCORE: 30822 Bonus ------- Triggered Max Security 2000 High Alert Combat Kills 477 Follower Combat Kills 649 Met Zhirov 300 A7 Reached Mainframe 300 Read Decrypted Archives 300 Used Core Reset Matrix 3000 Hacked Protovariant 1000 Scanned by Researcher 1000 Pursued by Intercept 500 Integrated Exoskeleton 5000 Friendly Fire -118 Cogmind --------- Core Integrity 0/1600 Matter 309/425 Energy 444/450 System Corruption 0% Temperature Cool (0) Movement Walking (30) Location -1/Access Parts ------- > --- POWER (1) -------- Improved Quantum Reactor > --- PROPULSION (3) --- Sigix Exoskeleton > --- UTILITY (3) ------ Improved System Guard > --- WEAPON (4) ------- Sigix Sheargun Heavy Disruptor Cannon > --- INVENTORY (5) ---- Micro Antimatter Reactor Advanced Cryofiber Web Improved Cloaking Device Core Regenerator Enhanced Nova Cannon Peak State ------------ > --- POWER ------------ Improved Quantum Reactor > --- PROPULSION ------- Sigix Exoskeleton > --- UTILITY ---------- Experimental Targeting Computer Experimental Core Analyzer Improved System Guard > --- WEAPON ----------- Sigix Sheargun Sigix Sheargun Enhanced Nova Cannon Molecular Scythe > --- INVENTORY -------- Micro Antimatter Reactor Advanced Cryofiber Web Improved Cloaking Device Core Regenerator [Rating: 237] Favorites ----------- Power Micro Fission Core Engine Light Ion Engine Power Core Micro Fission Core Reactor Micro Antimatter Reactor Propulsion Cooled VTOL Module Treads Armored Treads Leg Sigix Exoskeleton Wheel Compact Wheel Hover Unit Improved Antigrav System Flight Unit Cooled VTOL Module Utility Hacking Suite Device Improved Terrain Scanner Storage Small Storage Unit Processor Improved Terrain Scan Processor Hackware Hacking Suite Protection Improved Utility Shielding Artifact Core Physics Calibrator Weapon Minigun Energy Gun Medium Laser Energy Cannon Enhanced Nova Cannon Ballistic Gun Minigun Ballistic Cannon Light Cannon Impact Weapon Hammer Slashing Weapon Axe Piercing Weapon Lance Special Melee Weapon Improved Datajack Build | -11 -10 -9 -9 -8 -7 -7 -7 -6 -5 -5 -5 -5 -5 -4 -4 -4 -3 -3 -2 -2 -2 -1 ------- Run | Yrd Mat Mat Min Mat Fac Low Low Fac Fac Ext Cet Arc Hub Fac Was Fac Res Qua Res Tes Sec Acc Slots Evolved 18 | . . 2 . 2 2 . . 2 2 . . . . 2 . . 2 . 2 . . 2 Power . | . . . . . . . . . . . . . . . . . . . . . . . Propulsion 2 | . . . . . . . . 1 . . . . . . . . . . 1 . . . Utility 14 | . . 2 . 2 2 . . 1 2 . . . . 2 . . 2 . 1 . . . Weapon 2 | . . . . . . . . . . . . . . . . . . . . . . 2 Parts Attached 175 | 7 15 20 1 27 6 . . 19 7 7 . 2 1 5 1 9 2 7 13 . 19 7 Power 21 | 1 2 2 . 5 2 . . 4 1 . . . . . . . . 1 1 . 2 . Engine 12 | 1 2 . . 5 1 . . 3 . . . . . . . . . . . . . . Core 5 | . . 2 . . 1 . . 1 1 . . . . . . . . . . . . . Reactor 4 | . . . . . . . . . . . . . . . . . . 1 1 . 2 . Propulsion 35 | 2 4 3 . 6 2 . . 2 1 2 . . . 1 . . 1 1 8 . 2 . Treads 7 | 1 2 2 . 2 . . . . . . . . . . . . . . . . . . Leg . | . . . . . . . . . . . . . . . . . . . . . . . Wheel 6 | 1 2 1 . 2 . . . . . . . . . . . . . . . . . . Hover 1 | . . . . . . . . . . . . . . . . . . 1 . . . . Flight 21 | . . . . 2 2 . . 2 1 2 . . . 1 . . 1 . 8 . 2 . Utility 72 | 2 1 6 . 7 2 . . 11 5 3 . 2 1 4 1 8 1 3 2 . 10 3 Device 30 | 1 1 2 . 3 . . . 6 1 2 . 1 1 1 1 2 1 . 2 . 3 2 Storage 1 | 1 . . . . . . . . . . . . . . . . . . . . . . Processor 11 | . . 1 . 2 . . . 1 . . . . . . . 1 . . . . 5 1 Hackware 24 | . . . . 2 2 . . 4 4 . . 1 . 3 . 5 . 3 . . . . Protection 5 | . . 3 . . . . . . . 1 . . . . . . . . . . 1 . Artifact 1 | . . . . . . . . . . . . . . . . . . . . . 1 . Weapon 47 | 2 8 9 1 9 . . . 2 . 2 . . . . . 1 . 2 2 . 5 4 Energy Gun 9 | 2 3 2 . . . . . . . . . . . . . . . . . . 2 . Energy Cannon 2 | . . . . . . . . . . . . . . . . . . . . . . 2 Ballistic Gun 12 | . . 5 1 5 . . . . . 1 . . . . . . . . . . . . Ballistic Cannon 2 | . 2 . . . . . . . . . . . . . . . . . . . . . Launcher . | . . . . . . . . . . . . . . . . . . . . . . . Special Weapon . | . . . . . . . . . . . . . . . . . . . . . . . Impact Weapon 7 | . 3 2 . 2 . . . . . . . . . . . . . . . . . . Slashing Weapon 11 | . . . . 1 . . . 1 . 1 . . . . . 1 . 2 1 . 3 1 Piercing Weapon 1 | . . . . . . . . . . . . . . . . . . . . . . 1 Special Melee Weapon 3 | . . . . 1 . . . 1 . . . . . . . . . . 1 . . . Unidentified Prototypes 15 | . . 1 . . 1 . . . . . . . . . . . 1 1 1 . 10 . Corrupted Parts 1 | . . . . . . . . . . 1 . . . . . . . . . . . . System Corruption 3 | . . . . . . . . . . 3 . . . . . . . . . . . . Parts Lost 42 | . 2 4 . 6 . . 2 1 1 5 . . . 2 . . . 8 6 1 . 4 Power 7 | . 1 1 . 3 . . 1 . . . . . . . . . . 1 . . . . Propulsion 10 | . 1 . . . . . . . . 2 . . . . . . . 4 2 1 . . Utility 15 | . . 1 . . . . 1 1 1 1 . . . 2 . . . 3 3 . . 2 Weapon 10 | . . 2 . 3 . . . . . 2 . . . . . . . . 1 . . 2 Highest Loss Streak 6 | . 1 3 . 3 . . 2 1 1 3 . . . 1 . . . 6 2 1 . 2 To Critical Strikes . | . . . . . . . . . . . . . . . . . . . . . . . Average Slot Usage (%) 90 | . 98 97 100 96 88 92 84 95 95 96 100 100 100 82 76 87 85 85 68 77 72 67 Engine 3 | . 13 . . 7 7 7 2 3 . . . . . . . . . . . . . . Core 3 | . . 10 11 . . . . 1 5 5 5 5 5 5 5 5 4 . . . . . Reactor 1 | . . . . . . . . . . . . . . . . . . 3 2 4 5 9 Treads 3 | . 14 11 11 7 . . . . . . . . . . . . . . . . . . Wheel 3 | . 14 11 11 6 . . . . . . . . . . . . . . . . . . Flight 9 | . . . . 3 15 15 15 19 17 15 17 17 17 15 15 15 14 10 12 16 9 . Device 11 | . 13 10 11 18 15 15 11 11 11 10 11 11 11 8 8 10 9 8 5 8 5 . Storage 3 | . 14 11 11 7 . . . . . . . . . . . . . . . . . . Processor 10 | . . 4 11 18 15 15 15 13 11 11 11 11 11 10 10 10 9 9 8 8 13 20 Hackware 21 | . . . . 2 26 30 30 32 36 41 41 41 41 35 31 40 42 46 32 30 21 . Protection 3 | . . 16 11 8 . . . . . . . . . . . . . . . . . . Energy Gun 2 | . 9 3 . . . . . . . . . . . . . . . . . . 4 14 Ballistic Gun 3 | . . 10 16 13 . . . . . 2 5 5 5 . . . . . . . . . Ballistic Cannon 1 | . 13 5 . . . . . . . . . . . . . . . . . . . . Slashing Weapon 3 | . . . . 1 7 7 7 6 5 3 5 5 5 5 5 5 4 4 3 4 4 5 Special Melee Weapon 1 | . . . . . . . . 4 5 2 . . . . . . . . . 4 1 . Peak Build Rating 237 | 9 9 24 24 31 37 37 37 63 73 73 70 76 76 76 73 99 102 120 108 109 219 237 Average Rating 60 | 4 8 20 23 27 35 37 35 50 69 67 70 73 74 68 70 82 96 99 90 107 141 223 On Entrance 62 | . 9 9 23 24 27 37 37 33 63 73 70 70 76 72 66 73 95 99 66 108 101 213 Naked Turns . | . . . . . . . . . . . . . . . . . . . . . . . Heaviest Build 49 | 15 16 22 19 22 8 8 8 13 13 15 15 16 16 15 12 12 12 18 16 16 31 49 Greatest Support 60 | 16 20 20 20 42 10 10 10 16 16 16 20 15 15 17 17 17 20 20 28 28 60 60 Greatest Overweight (x) 2 | . 1 2 1 1 . . . . . . . 1 1 . . . . 2 1 . . . Average Overweight (x) . | . . 1 . . . . . . . . . . . . . . . . . . . . Largest Inventory Capacity 8 | 8 8 8 8 8 5 5 5 5 5 5 5 5 5 5 5 5 5 5 5 5 5 5 Average Capacity 5 | 6 8 8 8 7 5 5 5 5 5 5 5 5 5 5 5 5 5 5 5 5 5 5 Most Carried 8 | 4 8 8 8 8 5 5 5 5 5 5 5 5 5 5 3 4 4 5 5 4 5 5 Average Carried 5 | 3 7 7 8 6 4 5 5 4 4 4 5 4 4 2 3 2 3 4 3 3 4 3 Final Capacity 8 | 8 8 8 8 5 5 5 5 5 5 5 5 5 5 5 5 5 5 5 5 5 5 5 Final Carried 8 | 4 8 8 8 5 5 5 5 5 5 5 5 5 4 3 2 3 4 4 3 4 3 5 Class Distribution -------------------- 31% | Wizard-Scout 20% | Hacker-Scout 20% | Mutant 4% | Alien-Sigix 4% | Scavenger-Skirmisher 4% | Skirmisher Dominant Class ---------------- Mutant | -10/Materials Mutant | -9/Materials Mutant | -9/Mines Scavenger-Skirmisher | -8/Materials Hacker-Scout | -7/Factory Hacker-Scout | -7/Lower Caves Hacker-Scout | -7/Lower Caves Hacker-Scout | -6/Factory Wizard-Scout | -5/Factory Wizard-Scout | -5/Extension Wizard-Scout | -5/Cetus Wizard-Mutant | -5/Archives Wizard-Mutant | -5/Hub_04(d) Wizard-Scout | -4/Factory Wizard-Scout | -4/Waste Wizard-Scout | -4/Factory Wizard-Scout | -3/Research Wizard-Scout | -3/Quarantine Wizard-Scout | -2/Research Wizard-Scout | -2/Testing Wizard-Scout | -2/Section 7 Alien-Sigix | -1/Access Resources | -11 -10 -9 -9 -8 -7 -7 -7 -6 -5 -5 -5 -5 -5 -4 -4 -4 -3 -3 -2 -2 -2 -1 ----------- Run | Yrd Mat Mat Min Mat Fac Low Low Fac Fac Ext Cet Arc Hub Fac Was Fac Res Qua Res Tes Sec Acc Matter Collected 3413 | 220 370 762 52 899 60 . . 68 158 122 . 8 . 73 40 17 45 81 70 26 230 112 Remotely . | . . . . . . . . . . . . . . . . . . . . . . . Salvage Created 4311 | 30 410 1114 70 1268 51 . 23 408 52 152 . 69 . . . 17 45 81 32 . 259 230 Parts 297 | 6 24 84 2 83 4 . 3 20 7 8 . 3 . . . 2 3 12 1 . 22 13 Haulers Intercepted 4 | . 1 2 . 1 . . . . . . . . . . . . . . . . . . Recyclers Shooed 3 | . . 1 . 1 . . . . . . . . . . . . . . . . . 1 Parts Field Recycled . | . . . . . . . . . . . . . . . . . . . . . . . Retrieved Matter . | . . . . . . . . . . . . . . . . . . . . . . . Parts Self-Destructed 9 | . . . . . . . 9 . . . . . . . . . . . . . . . Prevented . | . . . . . . . . . . . . . . . . . . . . . . . Kills | -11 -10 -9 -9 -8 -7 -7 -7 -6 -5 -5 -5 -5 -5 -4 -4 -4 -3 -3 -2 -2 -2 -1 ------- Run | Yrd Mat Mat Min Mat Fac Low Low Fac Fac Ext Cet Arc Hub Fac Was Fac Res Qua Res Tes Sec Acc Combat Hostiles Destroyed 78 | . 12 32 2 21 . . 1 . . 3 . . . . . . . 1 . . 2 4 Melee 10 | . 2 . . 2 . . 1 . . 3 . . . . . . . 1 . . . 1 Guns 43 | . . 18 2 18 . . . . . . . . . . . . . . . . 2 3 Cannons 22 | . 8 14 . . . . . . . . . . . . . . . . . . . . AOE 1 | . . . . 1 . . . . . . . . . . . . . . . . . . Classes Destroyed 16 | 1 5 3 . 3 . . . . . 1 . . . . . . . 1 . . 1 1 Worker 4 | . . 3 . . 1 . . . . . . . . . . . . . . . . . Builder 2 | . . . . 1 . . . 1 . . . . . . . . . . . . . . Tunneler 3 | 2 . . . . . . . 1 . . . . . . . . . . . . . . Hauler 4 | . 1 2 . 1 . . . . . . . . . . . . . . . . . . Recycler 5 | . . 1 . 2 . . . 2 . . . . . . . . . . . . . . Mechanic 2 | . . . . 1 . . . 1 . . . . . . . . . . . . . . Operator 12 | . 3 1 . 2 1 . . 1 1 . . . . . . 1 . 1 . . 1 . Watcher 15 | . 1 4 . 5 1 . . . 1 . . . . . . . 1 . 1 . 1 . Swarmer 29 | . 3 15 . 8 . . 1 . . 2 . . . . . . . . . . . . Saboteur 2 | . . . . . . . . . . . . . . . . . . . . . . 2 Grunt 33 | . 9 12 2 8 . . . . . . . . . . . . . . . . . 2 Sentry 9 | . . 5 . 4 . . . . . . . . . . . . . . . . . . Hunter 1 | . . . . 1 . . . . . . . . . . . . . . . . . . Programmer 1 | . . . . . . . . . . . . . . . . . . 1 . . . . Behemoth 1 | . . . . . . . . . . 1 . . . . . . . . . . . . Executioner 2 | . . . . . . . . . . . . . . . . . . . . . 2 . Best Kill Streak 6 | 2 6 6 2 4 1 . 1 4 1 2 . . . . . . 1 1 1 . 2 4 Combat Bots Only 6 | . 5 6 2 4 . . 1 . . 2 . . . . . . . 1 . . 2 4 Max Kills in Single Turn 2 | 1 1 2 2 2 1 . 1 1 1 1 . . . . . 1 1 1 1 . 1 1 Gunslinging 1 | . . . 1 1 . . . . . . . . . . . . . . . . . . Exploded 1 | . . . . 1 . . . . . . . . . . . . . . . . . . Melee 1 | . 1 . . 1 . . 1 . . 1 . . . . . . . 1 . . . 1 Uniques/NPCs Destroyed . | . . . . . . . . . . . . . . . . . . . . . . . Combat | -11 -10 -9 -9 -8 -7 -7 -7 -6 -5 -5 -5 -5 -5 -4 -4 -4 -3 -3 -2 -2 -2 -1 -------- Run | Yrd Mat Mat Min Mat Fac Low Low Fac Fac Ext Cet Arc Hub Fac Was Fac Res Qua Res Tes Sec Acc Hostile Shots Fired 1173 | . 65 152 9 150 16 2 32 16 15 22 1 3 . 4 . . . 58 38 14 229 347 Missed 392 | . 12 37 1 45 12 1 12 7 8 9 1 . . 2 . . . 21 23 5 81 115 Damage Taken 11184 | . 648 1222 89 1582 46 17 301 210 111 349 28 58 . 51 . . . 891 452 200 1583 3346 Core 3507 | . 78 198 . 307 46 . 227 69 50 139 . . . . . . . 531 173 73 572 1044 Absorbed by Shields 488 | . . . . . . . . . . 93 . . . . . . . . . . 204 191 Redirected to Shielding 99 | . . 38 . 61 . . . . . . . . . . . . . . . . . . Ignored by Resistances 5163 | . . . . . . . . . . . . . . . . . . . . . 1793 3370 Regen/Repaired (Parts) 587 | . 103 280 . . . . . 62 . . . . . . . . . . . . 142 . Core Remaining (%) 69 | 100 68 . 50 44 . . 61 91 . . . . 81 . . 100 . 59 . . 41 . Volleys Fired 309 | 2 53 108 7 84 . . . . . . 2 5 . . . . . . . . 10 38 Largest 3 | 2 2 2 2 2 . . . . . . 1 1 . . . . . . . . 2 3 Hottest 320 | 100 100 91 50 50 . . . . . . 30 30 . . . . . . . . 200 320 Shots Fired 542 | 4 96 195 8 167 . . . . . . 2 5 . . . . . . . . 20 45 Gun 421 | 4 51 123 8 167 . . . . . . 2 5 . . . . . . . . 20 41 Cannon 121 | . 45 72 . . . . . . . . . . . . . . . . . . . 4 Launcher . | . . . . . . . . . . . . . . . . . . . . . . . Special . | . . . . . . . . . . . . . . . . . . . . . . . Kinetic 385 | . 45 158 8 167 . . . . . . 2 5 . . . . . . . . . . Thermal 95 | 4 51 37 . . . . . . . . . . . . . . . . . . . 3 Explosive . | . . . . . . . . . . . . . . . . . . . . . . . Electromagnetic 1 | . . . . . . . . . . . . . . . . . . . . . . 1 Slashing 61 | . . . . . . . . . . . . . . . . . . . . . 20 41 Robot Hit Streak 19 | 1 12 19 14 16 . . . . . . 8 10 . . . . . . . . 12 11 Robot Miss Streak 6 | 1 6 3 2 3 . . . . . . . 3 . . . . . . . . 1 5 Penetration Max 1 | . . . . . . . . . . . . . . . . . . . . . . 1 Secondary Targets 6 | . . . 1 4 . . . . . . . . . . . . . . . . 1 . Max Gunslinging Chain 1 | . . . 1 1 . . . . . . . . . . . . . . . . 1 . Shots Hit Robots 436 | 2 63 125 6 125 4 . 1 12 7 24 2 7 . . . 3 1 8 2 1 20 23 Core Hits 166 | 2 20 51 2 52 2 . 1 4 2 5 1 2 . . . 2 1 2 . . 7 10 Critical Kills 1 | . 1 . . . . . . . . . . . . . . . . . . . . . Critical Parts Destroyed 1 | . 1 . . . . . . . . . . . . . . . . . . . . . Critical Strikes 20 | . 5 4 . 1 . . . . 1 6 . . . . . . . 2 . . . 1 Burn 3 | . 2 1 . . . . . . . . . . . . . . . . . . . . Blast 4 | . 1 3 . . . . . . . . . . . . . . . . . . . . Smash 2 | . 2 . . . . . . . . . . . . . . . . . . . . . Sever 11 | . . . . 1 . . . . 1 6 . . . . . . . 2 . . . 1 Melee Attacks 482 | . 30 4 . 23 45 4 5 74 43 27 4 5 5 14 . 24 16 25 33 15 53 33 Impact 36 | . 30 4 . 2 . . . . . . . . . . . . . . . . . . Slashing 429 | . . . . 21 45 4 5 74 43 15 4 5 5 14 . 24 16 25 33 14 53 29 Piercing 4 | . . . . . . . . . . . . . . . . . . . . . . 4 Sneak Attacks 28 | . 1 . . 4 1 . . 8 . 12 . . . . . 1 . . . . . 1 Combat Hostiles 2 | . . . . 2 . . . . . . . . . . . . . . . . . . Follow-up Attacks 3 | . . . . . . . . . . . . . . . . . . 3 . . . . Damage Inflicted 12292 | 38 1138 2131 102 2663 213 . 37 790 335 423 44 481 . . . 166 47 373 108 . 1194 2009 Guns 6327 | 38 284 1218 102 1917 . . . . . . 44 66 . . . . . . . . 905 1753 Cannons 1470 | . 489 913 . . . . . . . . . . . . . . . . . . . 68 Explosions 112 | . . . . 112 . . . . . . . . . . . . . . . . . . Melee 4347 | . 365 . . 634 213 . 37 790 335 423 . 415 . . . 166 47 373 108 . 289 152 Ramming 36 | . . . . . . . . . . . . . . . . . . . . . . 36 Kinetic 4377 | . 489 1759 102 1917 . . . . . . 44 66 . . . . . . . . . . Thermal 846 | 38 284 372 . 112 . . . . . . . . . . . . . . . . . 40 Explosive . | . . . . . . . . . . . . . . . . . . . . . . . Electromagnetic 28 | . . . . . . . . . . . . . . . . . . . . . . 28 Impact 365 | . 365 . . . . . . . . . . . . . . . . . . . . . Slashing 6616 | . . . . 634 213 . 37 790 335 423 . 415 . . . 166 47 373 108 . 1194 1881 Piercing 24 | . . . . . . . . . . . . . . . . . . . . . . 24 Highest Corruption 6 | . 1 . . . . . . 1 . 3 3 3 3 3 3 3 . 6 . 1 1 . Average Corruption 1 | . 1 . . . . . . 1 . 3 3 3 1 3 3 3 . 3 . 1 1 . Corruption Purged 3 | . . . . . . . . . . . . . 3 . . . . . . . . . Corruption Blocked . | . . . . . . . . . . . . . . . . . . . . . . . Effects 35 | . 4 . . . . . . 4 . 9 1 . 3 3 . 7 . 3 . 1 . . Message Errors 9 | . . . . . . . . 2 . 1 1 . 1 2 . 1 . 1 . . . . Matter Fused 11 | . . . . . . . . 2 . 3 . . 2 . . 3 . . . 1 . . Heat Flow Errors 2 | . . . . . . . . . . . . . . . . 1 . 1 . . . . Energy Discharges 1 | . . . . . . . . . . 1 . . . . . . . . . . . . Data Loss (minor) 9 | . 2 . . . . . . . . 3 . . . 1 . 2 . 1 . . . . Data Loss (major) 1 | . 1 . . . . . . . . . . . . . . . . . . . . . Misfires 1 | . 1 . . . . . . . . . . . . . . . . . . . . . Alerts 1 | . . . . . . . . . . 1 . . . . . . . . . . . . Overload Shots . | . . . . . . . . . . . . . . . . . . . . . . . Overflow Damage 898 | . 128 . . 212 50 . . 245 39 . . 113 . . . . . 32 53 . 26 . Projectiles 10 | . 10 . . . . . . . . . . . . . . . . . . . . . Explosions 31 | . . . . 31 . . . . . . . . . . . . . . . . . . Melee 857 | . 118 . . 181 50 . . 245 39 . . 113 . . . . . 32 53 . 26 . Knockbacks 15 | . 6 9 . . . . . . . . . . . . . . . . . . . . Impact 1 | . 1 . . . . . . . . . . . . . . . . . . . . . Kinetic 13 | . 5 8 . . . . . . . . . . . . . . . . . . . . Secondary 1 | . . 1 . . . . . . . . . . . . . . . . . . . . Self-Inflicted Damage 238 | . . . . 202 . . . . . . . . . . . . . . . . . 36 Shots 2 | . . . . 2 . . . . . . . . . . . . . . . . . . Rammed . | . . . . . . . . . . . . . . . . . . . . . . . Targets Rammed . | . . . . . . . . . . . . . . . . . . . . . . . Kicked . | . . . . . . . . . . . . . . . . . . . . . . . Crushed . | . . . . . . . . . . . . . . . . . . . . . . . Highest Temperature 328 | 24 300 261 16 45 . . . . . . 5 . . . . 189 . 156 . . 328 40 Average Temperature 55 | 16 79 49 9 9 . . . . . . 4 . . . . 101 . 81 . . 162 30 Received Heat Transfer 2339 | . 285 408 48 612 21 9 . 12 . 21 . 45 . 9 . . . . 72 18 345 434 Effects 3 | . . 3 . . . . . . . . . . . . . . . . . . . . Interference 3 | . . 3 . . . . . . . . . . . . . . . . . . . . Siege Activations . | . . . . . . . . . . . . . . . . . . . . . . . Robots Corrupted 3 | . 3 . . . . . . . . . . . . . . . . . . . . . Combat Hostiles 2 | . 2 . . . . . . . . . . . . . . . . . . . . . Parts Fried 5 | . 4 . . . . . . . . 1 . . . . . . . . . . . . Impact Corruptions 5 | . 5 . . . . . . . . . . . . . . . . . . . . . Robots Melted . | . . . . . . . . . . . . . . . . . . . . . . . Combat Hostiles . | . . . . . . . . . . . . . . . . . . . . . . . Parts Melted 4 | 1 1 2 . . . . . . . . . . . . . . . . . . . . Heat Transferred 2246 | 111 999 999 . 100 . . . . . . . . . . . . . . . . . 37 Parts Sabotaged . | . . . . . . . . . . . . . . . . . . . . . . . Parts Stolen . | . . . . . . . . . . . . . . . . . . . . . . . Parts Stripped . | . . . . . . . . . . . . . . . . . . . . . . . Power Chain Reactions . | . . . . . . . . . . . . . . . . . . . . . . . Alert | -11 -10 -9 -9 -8 -7 -7 -7 -6 -5 -5 -5 -5 -5 -4 -4 -4 -3 -3 -2 -2 -2 -1 ------- Run | Yrd Mat Mat Min Mat Fac Low Low Fac Fac Ext Cet Arc Hub Fac Was Fac Res Qua Res Tes Sec Acc Peak Influence 2367 | 10 256 518 174 503 354 . . 302 268 634 381 207 93 109 38 123 108 183 436 185 2057 2367 Initial 1233 | . 6 48 124 67 228 . . 120 62 42 297 152 72 45 38 26 12 60 87 69 103 1233 Average 258 | 2 154 328 148 161 211 . . 106 151 410 316 170 76 64 38 72 79 143 223 109 574 1699 Maximum Alert Level 5 | . 1 2 . 2 1 . . 1 1 2 1 1 . . . . . . 2 . 5 5 Low Security (%) 59 | 100 64 10 100 62 30 . . 93 62 24 . 87 100 100 100 100 100 100 42 100 68 . Level 1 27 | . 35 73 . 27 69 . . 6 37 2 100 12 . . . . . . 47 . 3 . Level 2 7 | . . 15 . 9 . . . . . 73 . . . . . . . . 10 . . . Level 3 . | . . . . . . . . . . . . . . . . . . . . . . . Level 4 . | . . . . . . . . . . . . . . . . . . . . . . 6 Level 5 . | . . . . . . . . . . . . . . . . . . . . . . . High Security . | . . . . . . . . . . . . . . . . . . . . . . . Max Security 4 | . . . . . . . . . . . . . . . . . . . . . 27 93 Squads Dispatched 93 | . 2 4 1 5 1 . . 9 2 1 . . 1 4 . 3 . 2 2 10 18 28 Investigation 24 | . 1 3 1 2 1 . . 4 2 . . . 1 2 . 3 . . 2 2 . . Extermination 5 | . . . . . . . . 1 . . . . . 2 . . . 1 . 1 . . Reinforcement 20 | . 1 1 . 2 . . . 4 . 1 . . . . . . . 1 . 3 2 5 Assault 37 | . . . . . . . . . . . . . . . . . . . . 2 13 22 Garrison 4 | . . . . 1 . . . . . . . . . . . . . . . 2 . 1 Intercept 3 | . . . . . . . . . . . . . . . . . . . . . 3 . Searches Triggered . | . . . . . . . . . . . . . . . . . . . . . . . Construction Impeded 1 | . . . . . . . . . . . . . . . . . . . . . . 1 Haulers Reinforced 1 | . . . . . . . . . . . . . . . . . . . . . . 1 Active Scanning Responses . | . . . . . . . . . . . . . . . . . . . . . . . Cargo Convoy Interrupts . | . . . . . . . . . . . . . . . . . . . . . . . Stealth | -11 -10 -9 -9 -8 -7 -7 -7 -6 -5 -5 -5 -5 -5 -4 -4 -4 -3 -3 -2 -2 -2 -1 --------- Run | Yrd Mat Mat Min Mat Fac Low Low Fac Fac Ext Cet Arc Hub Fac Was Fac Res Qua Res Tes Sec Acc Distress Signals 23 | . . 4 . 3 . . . 1 1 2 1 . . . . 1 . 2 . 1 4 3 Communications Jammed . | . . . . . . . . . . . . . . . . . . . . . . . Distress Signals . | . . . . . . . . . . . . . . . . . . . . . . . Times Spotted 479 | . 18 42 2 47 12 3 8 22 8 21 6 8 1 2 . 4 3 15 22 5 97 133 Peak Tracking Total 75 | . 3 5 2 6 5 3 6 7 5 5 5 6 2 3 . 2 1 11 10 4 44 75 Tactical Retreats 63 | . . 3 . 4 5 2 1 7 2 3 5 2 . 1 . 1 . 2 4 2 10 9 Traps | -11 -10 -9 -9 -8 -7 -7 -7 -6 -5 -5 -5 -5 -5 -4 -4 -4 -3 -3 -2 -2 -2 -1 ------- Run | Yrd Mat Mat Min Mat Fac Low Low Fac Fac Ext Cet Arc Hub Fac Was Fac Res Qua Res Tes Sec Acc Traps Triggered 15 | . 2 . . . . . . 1 . 4 . . . 3 . . . . 1 . 1 3 Indirectly . | . . . . . . . . . . . . . . . . . . . . . . . Trap Hack Attempts 27 | . . . . 27 . . . . . . . . . . . . . . . . . . Triggered 1 | . . . . 1 . . . . . . . . . . . . . . . . . . Disarmed 11 | . . . . 2 . . . . . . . . . . . 4 4 . . 1 . . Reprogrammed 20 | . . . . . . . . . . . . . . . . . . 6 14 . . . Reused 3 | . . . . . . . . . . . . . . . . . . . 3 . . . Traps Extracted . | . . . . . . . . . . . . . . . . . . . . . . . Installed . | . . . . . . . . . . . . . . . . . . . . . . . Triggered 5 | . . . . . . . 2 . . . . . . . . . . . 3 . . . Machines | -11 -10 -9 -9 -8 -7 -7 -7 -6 -5 -5 -5 -5 -5 -4 -4 -4 -3 -3 -2 -2 -2 -1 ---------- Run | Yrd Mat Mat Min Mat Fac Low Low Fac Fac Ext Cet Arc Hub Fac Was Fac Res Qua Res Tes Sec Acc Machines Disabled 22 | . 1 2 . 3 1 . . . . 1 2 . . . . . . 1 . 1 9 1 Max in Single Turn 2 | . 1 1 . 2 1 . . . . . 1 . . . . . . 1 . 1 1 1 Garrison Access 10 | . . . . 1 2 . . 3 . . . . . 1 . 1 1 . 1 . . . Energy Cycler 1 | . . . . . . . . . . 1 . . . . . . . . . . . . Machines Repaired . | . . . . . . . . . . . . . . . . . . . . . . . Machines Dismantled . | . . . . . . . . . . . . . . . . . . . . . . . Machines Sabotaged . | . . . . . . . . . . . . . . . . . . . . . . . Overloaded Fab Kills . | . . . . . . . . . . . . . . . . . . . . . . . Hacking | -11 -10 -9 -9 -8 -7 -7 -7 -6 -5 -5 -5 -5 -5 -4 -4 -4 -3 -3 -2 -2 -2 -1 --------- Run | Yrd Mat Mat Min Mat Fac Low Low Fac Fac Ext Cet Arc Hub Fac Was Fac Res Qua Res Tes Sec Acc Machines Accessed 126 | . 8 12 1 8 13 . . 21 6 4 1 1 2 7 . 10 3 6 8 8 6 1 Terminals 89 | . 7 8 1 6 8 . . 12 5 4 1 . 2 3 . 6 2 6 5 7 5 1 Fabricators 14 | . . . . . 2 . . 3 1 . . . . 3 . 3 . . 2 . . . Repair Stations 4 | . 1 1 . . . . . 2 . . . . . . . . . . . . . . Recycling Units 1 | . . 1 . . . . . . . . . . . . . . . . . . . . Scanalyzers 7 | . . 2 . 1 1 . . 1 . . . . . . . . . . . 1 1 . Garrison Access 10 | . . . . 1 2 . . 3 . . . . . 1 . 1 1 . 1 . . . Total Hacks 538 | . 24 35 4 36 45 . . 78 36 12 3 25 12 39 . 52 17 18 42 39 19 2 Successful 409 | . 14 25 1 28 21 . . 52 25 7 1 25 11 35 . 44 16 17 38 32 16 1 Failed 128 | . 10 10 3 8 24 . . 26 11 5 2 . 1 4 . 7 1 1 4 7 3 1 Catastrophic 8 | . . 3 1 . 1 . . . . . . . . . . . . . . 2 . 1 Database Lockouts 1 | . . . . . . . . . . . . . . . . 1 . . . . . . Manual 221 | . 16 18 3 12 20 . . 28 18 8 . . 9 19 . 22 10 6 10 14 7 1 Terminals 406 | . 22 22 4 27 35 . . 56 28 12 3 . 12 26 . 38 16 18 34 33 18 2 Fabricators 54 | . . . . . 4 . . 10 8 . . . . 12 . 13 . . 7 . . . Repair Stations 10 | . 2 4 . . . . . 4 . . . . . . . . . . . . . . Recycling Units 1 | . . 1 . . . . . . . . . . . . . . . . . . . . Scanalyzers 30 | . . 8 . 8 3 . . 4 . . . . . . . . . . . 6 1 . Garrison Access 12 | . . . . 1 3 . . 4 . . . . . 1 . 1 1 . 1 . . . Terminal Hacks 238 | . 7 7 1 12 8 . . 28 14 5 1 25 7 18 . 24 10 14 26 20 10 1 Record 30 | . . . . . . . . . . . . 25 . . . 1 . 2 1 1 . . Part Schematic 8 | . . . . . . . . 3 1 . . . . 2 . 2 . . . . . . Robot Analysis 5 | . 2 . . . . . . . . . . . . . . . 1 . 1 1 . . Prototype ID Bank 27 | . 1 1 . 3 2 . . 3 1 . . . 1 1 . 2 1 3 3 4 1 . Open Door 4 | . . . . . . . . . 1 1 1 . . . . . . . . . 1 . Level Access Points 7 | . . . . . . . . 1 . . . . 1 1 . 1 1 1 1 . . . Branch Access Points 4 | . . . . . . . . . . . . . . 1 . 1 1 . 1 . . . Emergency Access Points 7 | . . . . 1 . . . . 1 . . . 1 2 . 2 . . . . . . Machine Index 6 | . . . . . . . . . 1 . . . . . . 1 1 1 1 1 . . Terminal Index 12 | . 1 1 . . 1 . . 1 1 1 . . 1 1 . 1 1 1 . . 1 . Fabricator Index 3 | . . . . . . . . 1 1 . . . . . . 1 . . . . . . Scanalyzer Index 1 | . . . . . . . . 1 . . . . . . . . . . . . . . Garrison Index 6 | . . . . . 1 . . 1 1 . . . . 1 . 1 . . 1 . . . Alert Level 20 | . . 2 . 2 2 . . 4 1 1 . . 1 1 . . . . 3 1 1 1 Unreport Threat 8 | . . 2 . 1 1 . . 1 . . . . . . . . . . 1 . 2 . Locate Traps 16 | . 1 . . 2 1 . . 3 2 . . . . . . 1 1 1 2 1 1 . Disarm Traps 3 | . . . . . . . . . . . . . . . . 1 1 . . 1 . . Reprogram Traps 5 | . . . . . . . . . . . . . . . . . . 1 4 . . . Dispatch Records 6 | . . . . . . . . . . 1 . . . . . 2 . . 2 1 . . Security Status 1 | . . . . . . . . . . . . . . 1 . . . . . . . . Patrol Status 2 | . . . . . . . . . . . . . . 1 . 1 . . . . . . Investigation Status 2 | . . . . . . . . 1 . . . . . 1 . . . . . . . . Extermination Status 1 | . . . . . . . . 1 . . . . . . . . . . . . . . Recall Investigation 10 | . . . . . . . . 1 . 1 . . . 1 . 3 . 1 2 1 . . Recall Extermination 4 | . . . . . . . . . . . . . . 2 . 1 . 1 . . . . Recall Reinforcements 1 | . . . . . . . . . . . . . . . . . . . . . 1 . Recall Assault 1 | . . . . . . . . . . . . . . . . . . . . 1 . . Registered Components 3 | . . . . . . . . . 1 . . . . 1 . . . . . 1 . . Registered Prototypes 3 | . . . . . . . . . . . . . . . . 1 1 . . 1 . . Zone Layout 29 | . 2 1 1 3 . . . 6 2 . . . 2 1 . 1 1 2 3 3 1 . Protovariant Controls 2 | . . . . . . . . . . . . . . . . . . . . 2 . . Activate Exoskeleton 1 | . . . . . . . . . . . . . . . . . . . . . 1 . Fabricator Hacks 38 | . . . . . 3 . . 5 5 . . . . 9 . 10 . . 6 . . . Network Status 10 | . . . . . 2 . . 2 2 . . . . 1 . 2 . . 1 . . . Load Schematic 18 | . . . . . 1 . . 2 2 . . . . 5 . 5 . . 3 . . . Build 10 | . . . . . . . . 1 1 . . . . 3 . 3 . . 2 . . . Repair Station Hacks 10 | . 2 4 . . . . . 4 . . . . . . . . . . . . . . Scan Component 5 | . 1 2 . . . . . 2 . . . . . . . . . . . . . . Repair 5 | . 1 2 . . . . . 2 . . . . . . . . . . . . . . Recycling Unit Hacks 1 | . . 1 . . . . . . . . . . . . . . . . . . . . Report Inventory 1 | . . 1 . . . . . . . . . . . . . . . . . . . . Scanalyzer 28 | . . 8 . 8 2 . . 4 . . . . . . . . . . . 5 1 . Insert Component 12 | . . 3 . 3 1 . . 2 . . . . . . . . . . . 2 1 . Analyze 16 | . . 5 . 5 1 . . 2 . . . . . . . . . . . 3 . . Garrison Access Hacks 10 | . . . . 1 2 . . 3 . . . . . 1 . 1 1 . 1 . . . Seal Access 10 | . . . . 1 2 . . 3 . . . . . 1 . 1 1 . 1 . . . Unauthorized Hacks 84 | . 5 5 . 7 6 . . 8 6 2 . . 4 7 . 9 5 3 5 7 5 . Terminals 72 | . 5 5 . 7 5 . . 7 4 2 . . 4 4 . 6 5 3 4 6 5 . Track 5 | . . . . 2 . . . . . . . . . . . 1 . . . 2 . . Assimilate 10 | . 1 1 . . 1 . . 3 . . . . . . . 1 2 . . . 1 . Botnet 41 | . 3 3 . 4 3 . . 3 3 1 . . 2 3 . 3 2 2 3 3 3 . Disrupt 1 | . . . . . . . . . . 1 . . . . . . . . . . . . Operators 14 | . 1 1 . 1 1 . . 1 1 . . . 1 1 . 1 1 1 1 1 1 . Sabotage 1 | . . . . . . . . . . . . . 1 . . . . . . . . . Fabricators 11 | . . . . . 1 . . 1 2 . . . . 3 . 3 . . 1 . . . Prioritize 4 | . . . . . . . . . 1 . . . . 1 . 1 . . 1 . . . Recompile 7 | . . . . . 1 . . 1 1 . . . . 2 . 2 . . . . . . Repair Stations . | . . . . . . . . . . . . . . . . . . . . . . . Recycling Units . | . . . . . . . . . . . . . . . . . . . . . . . Scanalyzers 1 | . . . . . . . . . . . . . . . . . . . . 1 . . Researchers 1 | . . . . . . . . . . . . . . . . . . . . 1 . . Garrison Access . | . . . . . . . . . . . . . . . . . . . . . . . Data Cores Recovered 4 | . 2 . . . . . . . 1 . . . . . . . . . . . 1 . Used 1 | . 1 . . . . . . . . . . . . . . . . . . . . . Hacking Detections 93 | . 5 11 1 6 11 . . 18 4 2 . . 1 3 . 7 2 4 7 7 3 1 Full Trace Events 16 | . 1 4 1 1 . . . 3 1 . . . . . . 1 . . 2 2 . . Feedback Events 2 | . 1 . . . . . . 1 . . . . . . . . . . . . . . Corruption 2 | . 1 . . . . . . 1 . . . . . . . . . . . . . . Feedback Blocked 1 | . . . . . . . . . . . . . . . . . . . . 1 . . Robot Schematics Acquired . | . . . . . . . . . . . . . . . . . . . . . . . Robots Built . | . . . . . . . . . . . . . . . . . . . . . . . Authchips . | . . . . . . . . . . . . . . . . . . . . . . . Time . | . . . . . . . . . . . . . . . . . . . . . . . Total Robot Build Rating . | . . . . . . . . . . . . . . . . . . . . . . . Part Schematics Acquired 18 | . . 2 . 3 1 . . 5 1 . . . . 2 . 2 . . . 2 . . Parts Built 11 | . . . . . . . . 1 1 . . . . 3 . 3 . . 3 . . . Authchips 7 | . . . . . . . . 1 1 . . . . 3 . 2 . . . . . . Time 705 | . . . . . . . . 35 152 . . . . 327 . 114 . . 77 . . . Total Part Build Rating 68 | . . . . . . . . 6 5 . . . . 19 . 19 . . 19 . . . Parts Repaired 5 | . 1 2 . . . . . 2 . . . . . . . . . . . . . . Time 133 | . 26 76 . . . . . 31 . . . . . . . . . . . . . . Parts Recycled . | . . . . . . . . . . . . . . . . . . . . . . . Recycled Matter . | . . . . . . . . . . . . . . . . . . . . . . . Retrieved Matter . | . . . . . . . . . . . . . . . . . . . . . . . Retrieved Components . | . . . . . . . . . . . . . . . . . . . . . . . Parts Scanalyzed 11 | . . 3 . 3 1 . . 2 . . . . . . . . . . . 2 . . Part Schematics Acquired 10 | . . 2 . 3 1 . . 2 . . . . . . . . . . . 2 . . Parts Damaged 1 | . . 1 . . . . . . . . . . . . . . . . . . . . Bothacking | -11 -10 -9 -9 -8 -7 -7 -7 -6 -5 -5 -5 -5 -5 -4 -4 -4 -3 -3 -2 -2 -2 -1 ------------ Run | Yrd Mat Mat Min Mat Fac Low Low Fac Fac Ext Cet Arc Hub Fac Was Fac Res Qua Res Tes Sec Acc Used RIF Installer . | . . . . . . . . . . . . . . . . . . . . . . . Robots Hacked 1 | . . . . . . . . . . . . . . . . . . . . 1 . . Non-combat . | . . . . . . . . . . . . . . . . . . . . . . . Combat 1 | . . . . . . . . . . . . . . . . . . . . 1 . . Robot Hacks Applied 1 | . . . . . . . . . . . . . . . . . . . . 1 . . parse_system 1 | . . . . . . . . . . . . . . . . . . . . 1 . . Relay Couplers Released . | . . . . . . . . . . . . . . . . . . . . . . . Fabnet Peak Effective % . | . . . . . . . . . . . . . . . . . . . . . . . Robots Rewired 6 | . . . . . . . . . . 6 . . . . . . . . . . . . Allies Hacked . | . . . . . . . . . . . . . . . . . . . . . . . Hacks Repelled . | . . . . . . . . . . . . . . . . . . . . . . . Allies | -11 -10 -9 -9 -8 -7 -7 -7 -6 -5 -5 -5 -5 -5 -4 -4 -4 -3 -3 -2 -2 -2 -1 -------- Run | Yrd Mat Mat Min Mat Fac Low Low Fac Fac Ext Cet Arc Hub Fac Was Fac Res Qua Res Tes Sec Acc Total Allies 41 | . 1 1 . . 1 . . 2 . 13 . . . . . 1 1 . . . 1 20 Largest Group 11 | . 1 1 1 1 1 1 . 1 . 11 3 1 . . . 1 1 1 . . 1 8 Highest-Rated Group 421 | . 10 10 10 10 26 26 . 26 . 421 196 115 . . . 10 45 45 . . 24 112 Highest-Rated Ally 159 | . 10 10 10 10 26 26 . 26 . 159 159 115 . . . 10 45 45 . . 24 15 Total Orders 2 | . 2 . . . . . . . . . . . . . . . . . . . . . STAY 1 | . 1 . . . . . . . . . . . . . . . . . . . . . FOLLOW 1 | . 1 . . . . . . . . . . . . . . . . . . . . . Ally Attacks 151 | . . . . . . . . . . 102 13 . . . . . . . . . . 36 Total Damage 3551 | . . . . . . . . . . 2442 408 . . . . . . . . . . 701 Kills 23 | . . . . . . . . . . 20 . . . . . . . . . . . 3 Allies Corrupted . | . . . . . . . . . . . . . . . . . . . . . . . Allies Melted 1 | . . . . . . . . 1 . . . . . . . . . . . . . . Intel | -11 -10 -9 -9 -8 -7 -7 -7 -6 -5 -5 -5 -5 -5 -4 -4 -4 -3 -3 -2 -2 -2 -1 ------- Run | Yrd Mat Mat Min Mat Fac Low Low Fac Fac Ext Cet Arc Hub Fac Was Fac Res Qua Res Tes Sec Acc Robot Analysis Total 5 | . 2 . . . . . . . . . . . . . . . 1 . 1 1 . . Derelict Logs Recovered 3 | . . . 1 . . 1 1 . . . . . . . . . . . . . . . Drone Launches . | . . . . . . . . . . . . . . . . . . . . . . . Drone Recoveries . | . . . . . . . . . . . . . . . . . . . . . . . Exploration | -11 -10 -9 -9 -8 -7 -7 -7 -6 -5 -5 -5 -5 -5 -4 -4 -4 -3 -3 -2 -2 -2 -1 ------------- Run | Yrd Mat Mat Min Mat Fac Low Low Fac Fac Ext Cet Arc Hub Fac Was Fac Res Qua Res Tes Sec Acc Turns Passed 11448 | 92 949 1499 100 1472 699 253 48 1393 496 547 142 73 158 378 50 500 286 333 559 379 664 378 Spaces Moved 14462 | 79 541 743 73 1039 1242 352 85 2096 709 747 144 88 112 731 165 929 563 489 1062 701 1199 573 Core 74 | 14 . . . . . . . . . . . . . . . . . 3 57 . . . Treads 314 | . 57 137 1 119 . . . . . . . . . . . . . . . . . . Legs 837 | . . . . . . . . . . . . . . . . . . . . . 264 573 Wheels 1710 | 65 484 606 72 483 . . . . . . . . . . . . . . . . . . Hover 51 | . . . . . . . . . . . . . . . . . . 51 . . . . Flight 11476 | . . . . 437 1242 352 85 2096 709 747 144 88 112 731 165 929 563 435 1005 701 935 . Fastest Speed 23 | 50 95 95 115 37 34 34 34 30 29 29 23 29 29 29 29 29 29 30 28 28 28 30 Average Speed 44 | 91 104 130 115 87 34 34 34 31 29 30 28 52 34 29 29 29 29 47 34 28 30 30 Slowest Speed 250 | 100 160 250 170 250 37 34 34 34 30 32 29 104 104 29 29 29 30 195 100 30 32 30 Overloaded Moves 41 | . . . . . . . . . . . 10 . . . . . . . 31 . . . Propulsion Burnouts . | . . . . . . . . . . . . . . . . . . . . . . . Robots Hopped 36 | . . . . 3 3 . . 4 . 3 2 . . 1 . 5 1 . 7 1 6 . Cave-ins Triggered 2 | . . . . . . . . . . . . . . . . . . . . . . 2 Exploration Rate (%) 45 | 5 91 69 24 66 36 65 15 65 12 74 64 69 20 15 74 25 21 57 28 62 71 19 Regions Visited 22 Branch Regions 10 Pre-discovered Areas 2 | . . . 1 . . 1 . . . . . . . . . . . . . . . . Known Exits Taken 16 | . . . . 1 1 1 1 1 1 1 1 1 1 . . 1 1 1 1 1 1 . Unknown Exits Taken 4 | 1 1 1 1 . . . . . . . . . . . . . . . . . . . Scrap Searched 1 | . . . . . . 1 . . . . . . . . . . . . . . . . Spaces Dug 325 | . 6 4 . 11 37 3 . 57 31 1 . . 3 14 . 18 13 10 28 13 39 37 Terrain Destroyed 378 | . 6 4 . 31 37 3 . 57 31 1 . . 3 14 . 18 13 10 28 13 39 70 Melee 309 | . 6 4 . 11 37 3 . 57 31 1 . . 3 14 . 18 13 10 28 13 37 23 Projectile 48 | . . . . . . . . . . . . . . . . . . . . . 2 46 AOE 20 | . . . . 20 . . . . . . . . . . . . . . . . . . Terrain Rammed 1 | . . . . . . . . . . . . . . . . . . . . . . 1 Walls Destroyed 1 | . . . . . . . . . . . . . . . . . . . . . . 1 Machines Disabled . | . . . . . . . . . . . . . . . . . . . . . . . Actions | -11 -10 -9 -9 -8 -7 -7 -7 -6 -5 -5 -5 -5 -5 -4 -4 -4 -3 -3 -2 -2 -2 -1 --------- Run | Yrd Mat Mat Min Mat Fac Low Low Fac Fac Ext Cet Arc Hub Fac Was Fac Res Qua Res Tes Sec Acc Total 18172 | 91 775 1080 81 1422 1437 477 94 2688 927 1040 234 102 223 876 166 1116 658 554 1194 860 1385 692 Wait 2480 | . 122 181 1 196 141 122 5 488 165 204 87 1 105 101 . 153 76 26 89 135 79 3 Move 14372 | 78 540 742 72 1034 1235 351 84 2087 708 740 140 87 111 729 164 918 560 488 1049 698 1186 571 Hop 31 | . . . . 1 3 . . 4 . 3 1 . . 1 . 5 1 . 5 1 6 . Pick Up 57 | 4 7 8 . 10 2 . . 6 1 2 . 1 . 2 . 2 . 3 3 2 4 . Fast Attach 95 | 7 2 8 . 5 2 . . 11 4 5 . . . 3 1 7 2 6 8 . 18 6 Attach 35 | . 3 3 . 10 1 . . 3 1 . . . 1 2 . 2 . 2 4 . 2 1 Detach 30 | . 2 4 . 4 1 . . 2 1 . . . 1 3 . 3 2 2 1 . 1 3 Swap 52 | . 10 9 1 12 3 . . 5 2 2 . 2 . . . . . 1 1 . 4 . Drop 80 | . 6 13 . 16 4 . . 8 2 3 . 1 . 3 1 2 1 4 1 1 13 1 Fire 309 | 2 53 108 7 84 . . . . . . 2 5 . . . . . . . . 10 38 Melee 479 | . 30 4 . 23 45 4 5 74 43 27 4 5 5 14 . 24 16 22 33 15 53 33 Ram 1 | . . . . . . . . . . . . . . . . . . . . . . 1 Kick . | . . . . . . . . . . . . . . . . . . . . . . . Crush . | . . . . . . . . . . . . . . . . . . . . . . . Escape Stasis 124 | . . . . . . . . . . 54 . . . 18 . . . . . 8 9 35 Rewire . | . . . . . . . . . . . . . . . . . . . . . . . Trap 27 | . . . . 27 . . . . . . . . . . . . . . . . . . Miscellaneous . | . . . . . . . . . . . . . . . . . . . . . . . Route ------- -11/Scrapyard -10/Materials (discovered 4 exits: *Mat x2 / [*Min x2]) -9/Materials (discovered 4 exits: *Mat x2 / *Min / [*Sto]) -9/Mines -8/Materials (discovered 2 exits: *Fac x2) -7/Factory -7/Lower Caves -7/Lower Caves -6/Factory (discovered 6 exits: *Fac x4 / *Low x2) -5/Factory -5/Extension (discovered 3 exits: *Fac x2 / *Cet) -5/Cetus -5/Archives (discovered 2 exits: *Hub x2) -5/Hub_04(d) (discovered 4 exits: *Fac x4) -4/Factory (discovered 6 exits: Res x4 / Upp x2) -4/Waste -4/Factory (discovered 6 exits: *Res x4 / *Upp x2) -3/Research (discovered 6 exits: *Res x3 / Arm / *Qua x2) -3/Quarantine -2/Research (discovered 5 exits: *Acc x3 / *Tes x2) -2/Testing -2/Section 7 -1/Access (discovered 1 exit: [Com]) History --------- Turn | Location | Event 5 | -11/Scrapyard | Discovered new exit (range 15) 93 | -11/Scrapyard | Entered Materials 174 | -10/Materials | Discovered new exit (range 5) 205 | -10/Materials | Discovered new exit (range 7) 301 | -10/Materials | Build established: Mutant 933 | -10/Materials | Discovered new exit (range 4) 967 | -10/Materials | Repaired Lgt. Cannon 1018 | -10/Materials | Discovered new exit (range 16) 1042 | -10/Materials | Entered another Materials area 1042 | -9/Materials | Accompanied by 1 ally 1042 | -9/Materials | Evolved 2 slots: Utility x2 1173 | -9/Materials | Discovered new exit (range 15) 1727 | -9/Materials | Build established: Scavenger-Mutant 1878 | -9/Materials | Lost 3 parts (1p1u1w) 1985 | -9/Materials | Discovered new exit (range 16) 2075 | -9/Materials | Build established: Mutant 2183 | -9/Materials | Repaired Imp. Terrain Scanner 2223 | -9/Materials | Repaired Arm. Treads 2252 | -9/Materials | Discovered new exit (range 8) 2505 | -9/Materials | Discovered new exit (range 18) 2541 | -9/Materials | Entered Mines 2541 | -9/Mines | Accompanied by 1 ally 2628 | -9/Mines | Discovered new exit (range 9) 2641 | -9/Mines | Entered Materials 2641 | -8/Materials | Accompanied by 1 ally 2641 | -8/Materials | Evolved 2 slots: Utility x2 3724 | -8/Materials | Garrison activated, responded to threat 3748 | -8/Materials | Build established: Skirmisher 3815 | -8/Materials | Lost 3 parts (1p2w) 3817 | -8/Materials | Core integrity fell below 50% 4010 | -8/Materials | Discovered new exit (range 22) 4112 | -8/Materials | Discovered new exit (range 4) 4112 | -8/Materials | Identified exit to Factory 4113 | -8/Materials | Entered Factory 4113 | -7/Factory | Evolved 2 slots: Utility x2 4420 | -7/Factory | Build established: Hacker-Scout 4599 | -7/Factory | Discovered new exit (range 16) 4810 | -7/Factory | Identified exit to Lower Caves 4812 | -7/Factory | Entered Lower Caves 4812 | -7/Lower Caves | Accompanied by 1 ally 5000 | -7/Lower Caves | Learned location of Zion (-7) 5017 | -7/Lower Caves | Discovered new exit (range 10) 5021 | -7/Lower Caves | Identified exit to Lower Caves 5065 | -7/Lower Caves | Entered another Lower Caves area 5107 | -7/Lower Caves | Learned location of 1 exit from Factory 5109 | -7/Lower Caves | Discovered new exit (range 12) 5112 | -7/Lower Caves | Identified exit to Factory 5113 | -7/Lower Caves | Entered Factory 5113 | -6/Factory | Evolved 2 slots: Propulsion x1, Utility x1 5114 | -6/Factory | Identified exit to Lower Caves 5441 | -6/Factory | Repaired Imp. Sensor Array 5527 | -6/Factory | Discovered new exit (range 13) 5531 | -6/Factory | Identified exit to Factory 5606 | -6/Factory | Spotted B-75 Beast 5640 | -6/Factory | Discovered exit to Lower Caves (range 7) 5828 | -6/Factory | Fabricated Adv. Hacking Suite (x1) 5977 | -6/Factory | Repaired Lgt. Deuterium Engine 6506 | -6/Factory | Entered another Factory area 6506 | -5/Factory | Evolved 2 slots: Utility x2 6639 | -5/Factory | Discovered new exit (range 14) 6875 | -5/Factory | Build established: Wizard-Scout 6908 | -5/Factory | Fabricated Cld. Cesium-ion Thruster (x1) 7002 | -5/Factory | Identified exit to Extension 7002 | -5/Factory | Entered Extension 7015 | -5/Extension | Energy Cycler disabled 7016 | -5/Extension | Rescued a captive Derelict 7016 | -5/Extension | Rescued a captive Derelict 7016 | -5/Extension | Rescued a captive Derelict 7017 | -5/Extension | Rescued a captive Derelict 7019 | -5/Extension | Rescued a captive Derelict 7022 | -5/Extension | Rescued a captive Derelict 7034 | -5/Extension | Rescued a captive Derelict 7035 | -5/Extension | Rescued a captive Derelict 7057 | -5/Extension | Lost 3 allies 7094 | -5/Extension | Rescued A7 7221 | -5/Extension | Spotted B-75 Beast 7258 | -5/Extension | Spotted B-75 Beast 7259 | -5/Extension | Lost 5 allies 7260 | -5/Extension | Discovered new exit (range 15) 7303 | -5/Extension | Destroyed B-75 Beast 7332 | -5/Extension | Lost 3 parts (1n1u1w) 7347 | -5/Extension | Discovered new exit (range 16) 7347 | -5/Extension | Discovered new exit (range 15) 7351 | -5/Extension | Identified exit to Cetus 7352 | -5/Extension | Identified exit to Factory 7549 | -5/Extension | Entered Cetus 7549 | -5/Cetus | Accompanied by 3 allies (A7) 7554 | -5/Cetus | Acquired a Cetus Manufacturing Module code from A7 7554 | -5/Cetus | Spotted Cetus Guard 7554 | -5/Cetus | Spotted Cetus Guard 7554 | -5/Cetus | Spotted Cetus Guard 7554 | -5/Cetus | Spotted Cetus Guard 7655 | -5/Cetus | Escorted A7 to Cetus Mainframe 7676 | -5/Cetus | Discovered new exit (range 15) 7680 | -5/Cetus | Identified exit to Archives 7691 | -5/Cetus | Entered Archives 7691 | -5/Archives | Accompanied by 1 ally (A7) 7696 | -5/Archives | Received a hacking code to weaken MAIN.C 7696 | -5/Archives | Met Zhirov 7699 | -5/Archives | Unable to access archive contents 7702 | -5/Archives | Reinforcements dispatched to Archives 7702 | -5/Archives | Unable to access archive contents 7706 | -5/Archives | Read partially decrypted archive contents 7707 | -5/Archives | Discovered new exit (range 15) 7747 | -5/Archives | Reinforcements dispatched to Archives 7749 | -5/Archives | Zhirov warped through subspace 7750 | -5/Archives | Discovered new exit (range 13) 7762 | -5/Archives | Identified exit to Hub_04(d) 7764 | -5/Archives | Entered Hub_04(d) 7885 | -5/Hub_04(d) | Discovered exit to Factory (range 16) 7922 | -5/Hub_04(d) | Entered Factory 7922 | -4/Factory | Evolved 2 slots: Utility x2 8063 | -4/Factory | Fabricated Lrn. Terrain Scanner (x2) 8113 | -4/Factory | Identified exit to Upper Caves 8113 | -4/Factory | Identified exit to Research 8258 | -4/Factory | Fabricated Cld. Cesium-ion Thruster? 8300 | -4/Factory | Sucked down chute 8300 | -4/Factory | Entered Waste 8300 | -4/Waste | The area was eerily silent 8346 | -4/Waste | Discovered new exit (range 13) 8349 | -4/Waste | Identified exit to Factory 8350 | -4/Waste | Entered Factory 8376 | -4/Factory | Discovered exit to Research (range 3) 8384 | -4/Factory | Found Heavy Servo Lattice 8683 | -4/Factory | Fabricated Exp. Terrain Scan Processor (x1) 8718 | -4/Factory | Fabricated Adv. Hacking Suite (x1) 8728 | -4/Factory | Discovered exit to Upper Caves (range 19) 8756 | -4/Factory | Central database locked down 8812 | -4/Factory | Fabricated Plasma Sword? 8850 | -4/Factory | Entered Research 8850 | -3/Research | Evolved 2 slots: Utility x2 9058 | -3/Research | Identified exit to Research 9058 | -3/Research | Identified exit to Armory 9058 | -3/Research | Identified exit to Quarantine 9136 | -3/Research | Entered Quarantine 9136 | -3/Quarantine | Accompanied by 1 ally 9206 | -3/Quarantine | Found Alien Artifact 9206 | -3/Quarantine | Identified Subatomic Replicator 9212 | -3/Quarantine | Used Subatomic Replicator to replicate Plasma Sword 9469 | -3/Quarantine | Entered Research 9469 | -2/Research | Evolved 2 slots: Propulsion x1, Utility x1 9498 | -2/Research | Lost 6 parts (1p3n2u) 9510 | -2/Research | Identified exit to Testing 9566 | -2/Research | Fabricated Cld. Cesium-ion Thruster (x1) 9806 | -2/Research | Fabricated Lrn. Sensor Array? 9936 | -2/Research | Discovered new exit (range 19) 10009 | -2/Research | Identified exit to Access 10028 | -2/Research | Entered Testing 10086 | -2/Testing | Protovariant out of control (PP-PU6FL0GG20) 10086 | -2/Testing | Unleashed a protovariant (PP-PU6FL0GG20) 10152 | -2/Testing | Found Faulty Point Singularity Launcher 10214 | -2/Testing | Protovariant out of control (PY-OSYIJHEC4W) 10214 | -2/Testing | Unleashed a protovariant (PY-OSYIJHEC4W) 10303 | -2/Testing | Garrison activated, responded to threat 10362 | -2/Testing | Scanned by Researcher 10382 | -2/Testing | Spotted Fortress 10401 | -2/Testing | Discovered new exit (range 22) 10406 | -2/Testing | Identified exit to Section 7 10407 | -2/Testing | Entered Section 7 10413 | -2/Section 7 | Found Alien Artifact 10413 | -2/Section 7 | Identified Core Reset Matrix 10413 | -2/Section 7 | Used Core Reset Matrix 10417 | -2/Section 7 | Sensed 22 artifacts in vicinity 10423 | -2/Section 7 | Spotted S7 Guard 10430 | -2/Section 7 | Found Integrity Redistributor 10430 | -2/Section 7 | Used Integrity Redistributor, redistributed integrity from core (-26) 10452 | -2/Section 7 | Found Prototype Processor 10452 | -2/Section 7 | Identified Exp. Target Analyzer 10634 | -2/Section 7 | Found Integrated Dissipator 10634 | -2/Section 7 | Installed Integrated Dissipator, increased core heat dissipation (+20) 10672 | -2/Section 7 | Discovered exit to Access (range 15) 10682 | -2/Section 7 | Spotted S7 Guard 10700 | -2/Section 7 | Found Core Physics Calibrator 10724 | -2/Section 7 | Spotted Alpha 7 10737 | -2/Section 7 | Spotted Alpha 7 10774 | -2/Section 7 | Spotted B-99 Colossus 10794 | -2/Section 7 | Found LRC Insulator 10794 | -2/Section 7 | Installed LRC Insulator, gained EM resistance (25) 10797 | -2/Section 7 | Found LRC Matter Compressor 10797 | -2/Section 7 | Installed LRC Matter Compressor, increased matter storage capacity (+125) 10870 | -2/Section 7 | Spotted Executioner 10870 | -2/Section 7 | Spotted Executioner 10880 | -2/Section 7 | Integrated with Sigix Exoskeleton 10892 | -2/Section 7 | Destroyed Executioner 10905 | -2/Section 7 | Destroyed Executioner 10911 | -2/Section 7 | Found Prototype Processor 10911 | -2/Section 7 | Identified Exp. Core Analyzer 10917 | -2/Section 7 | Found Prototype Device 10917 | -2/Section 7 | Identified Adv. Kinecellerator 10920 | -2/Section 7 | Found Prototype Processor 10920 | -2/Section 7 | Identified Exp. Targeting Computer 10931 | -2/Section 7 | Spotted Striker 10931 | -2/Section 7 | Spotted Striker 10967 | -2/Section 7 | Spotted Executioner 10967 | -2/Section 7 | Spotted Executioner 11037 | -2/Section 7 | Spotted S7 Guard 11046 | -2/Section 7 | Found Core Regenerator 11057 | -2/Section 7 | Sigix Exoskeleton integrity reduced to 80% 11057 | -2/Section 7 | Spotted Investigator 11057 | -2/Section 7 | Scanned by Researcher 11058 | -2/Section 7 | Intercept squad dispatched 11058 | -2/Section 7 | Spotted Executioner 11065 | -2/Section 7 | Spotted Tracker 11065 | -2/Section 7 | Spotted Tracker 11066 | -2/Section 7 | Core integrity fell below 50% 11071 | -2/Section 7 | Entered Access 11071 | -1/Access | Evolved 2 slots: Weapon x2 11076 | -1/Access | Emitted hypermatrix ping 11081 | -1/Access | Assembled emerged from beneath the floor 11092 | -1/Access | Garrison activated, responded to threat 11171 | -1/Access | Assembled emerged from beneath the floor 11181 | -1/Access | Build established: Alien-Sigix 11218 | -1/Access | Assembled emerged from beneath the floor 11236 | -1/Access | Discovered new exit (range 17) 11283 | -1/Access | Crushed by falling debris 11328 | -1/Access | Sigix Exoskeleton integrity reduced to 60% 11352 | -1/Access | Spotted Investigator 11356 | -1/Access | Spotted Striker 11356 | -1/Access | Spotted Striker 11356 | -1/Access | Spotted Striker 11380 | -1/Access | Spotted Striker 11388 | -1/Access | Sigix Exoskeleton integrity reduced to 40% 11395 | -1/Access | Spotted Executioner 11395 | -1/Access | Spotted Striker 11402 | -1/Access | Sigix Exoskeleton integrity reduced to 20% 11409 | -1/Access | Core integrity fell below 50% 11413 | -1/Access | Crushed by falling debris 11438 | -1/Access | Spotted B-99 Colossus 11449 | -1/Access | Exoskeleton Destroyed Last Messages --------------- 11437_ C-57 Dissector destroyed. 11437_ Knocked back. 11437_ P-80 Master resets C-57 Dissector, system corruption cleaned. 11439_ C-30 ARC bursts open, deploying its payload. 11439_ G-73 Enforcer unfolds itself. 11439_ I-47 Archangel unfolds itself. 11439_ Slug penetrates Wall. 11439_ Penetrated by Slug. 11439_ K-01 Serf cleans the Terminal. 11441_ Slug penetrates K-01 Serf. 11441_ K-01 Serf destroyed. 11442_ K-01 Serf collects debris. 11443_ Slug penetrates Wall. 11444_ K-01 Serf collects debris. 11445_ C-57 Dissector knocked back. 11445_ K-01 Serf destroyed. 11447_ K-01 Serf cleans the Wave Collapse Detector. 11449_ Slug penetrates Wall. 11449_ Sigix Exoskeleton destroyed. Map ----- +----------------------------------------------------+ | ???????? #### ##### + ######## | | ???????? ! #### ##### ######+############# | | ???????? #### ##### ##### ############# | | ???????? #### ##### ############# | | ????????? #### #############" ############# | | ????????? #### ############## ############# | | ?????????#+######## ############## "############ | | ?????????? #############" "############ | | ??????????? #############" %"############ | | ???????????######################## "############ | | ????????????####################### ############# | | ??????????? ################" "############ | | ????????? ################" "############ | | ??????? ######## # ############# | | ????? "" ######## # %############# | | ????? "" ######## #% "############ | | ??? """""" ###### # # "############ | | ? """""" ###### # #% "############ | | ? "" ###### # #% ############# | | = ? "" ###### # %+% ############# | | # ######## # %## | | ! # ######## # ## | | ###### ################# ## | | ############/##################### # | | ss s h h # | | s s X H + """ """ | | #######################+########## w # """T""" ? | | ####! ########## #######h#############? | | # ! ########## cg ## ###### ? | | # ########## " ## ######?? | | # ] ########## """ ## "" #####??? | | # ########## k""" ## "" ""#####??? | | # ##########c " ## """""" Y""####???? | | #! !########## ## """""" Y""###????? | | # ## + ## "" RYYG##?????? | | #### ## ### k ## "" ""???????? | | #### ## #######+##### = k "????????? | | #######+# K ####### ##### k??????????? | | #######c##### ???????????? | | ####### ##### ???????????? | | * ####### #####/#####+#???????????? | | ! #### u A ????????????? | | ! *%= #### ###########?????????????? | | %= *** #### ###########?????????????? | | "T"" ** ###### #### ##########??????????????? | | """" ** ###### #########???????????????? | | ##### ###### #### ########????????????????? | | ##### ###### #### #######?????????????????? | | ##### ###### #### #####???????????????????? | | ######+###########/#### ####????????????????????? | +----------------------------------------------------+ Best States ------------- Heat Dissipation 165 Energy Generation 71 Energy Capacity 450 Matter Stores 304 Matter Capacity 425 Sight Range 16 Robot Scan Range 18 Terrain Scan Range 24 Terrain Scan Density 1010 Base Temperature (-) 200 Corruption Containment 12 Armor Coverage 150 Resistance: KI 50 Resistance: TH 50 Resistance: EX 50 Resistance: EM 75 Resistance: I 50 Resistance: S 50 Resistance: P 50 Utility Shielding 66 Evasion (%) 69 Targeting Accuracy 12 Core Analysis 8 Armor Integrity Analysis 40 Recoil Reduction 2 Offensive Hacking 98 Defensive Hacking 32 Authchip Count 2 Item Schematics ----------------- None Robot Schematics ------------------ None Fabricated ------------ Adv. Hacking Suite | x1 | -6/Factory | Authchip Cld. Cesium-ion Thruster | x1 | -5/Factory | Authchip Lrn. Terrain Scanner | x2 | -4/Factory | Authchip Cld. Cesium-ion Thruster | x1 | -4/Factory | Authchip Exp. Terrain Scan Processor | x1 | -4/Factory | Authchip Adv. Hacking Suite | x1 | -4/Factory | Authchip Plasma Sword | x1 | -4/Factory Cld. Cesium-ion Thruster | x1 | -2/Research Lrn. Sensor Array | x2 | -2/Research Alien Tech Used ----------------- Subatomic Replicator Core Reset Matrix Integrity Redistributor Integrated Dissipator Core Physics Calibrator LRC Insulator LRC Matter Compressor Sigix Exoskeleton Sigix Sheargun Achievements -------------- Turtlemind Ultimate Loadout Challenges ------------ None Game ------ Seed PrecisionRefineryProjector Manual? 0 Play Time 03:59:12 Cumulative 191.5 hours Start 2024.11.23 @ 19:37:26 End 2024.11.23 @ 23:36:57 Sessions 1 Manual Loads 0 Difficulty Rogue Special Mode None Game No. 152 Rogue 152 Adventurer 0 Explorer 0 Win Type - Total 4 Types 2/0/1/1/0/0/0/0/0 Lore% 64 Gallery% 69 Achievement% 53 Wizard Run 0 Options --------- Layout 2 ASCII 0 Keyboard 0 Movement Numpad Keybinds 0 Fullscreen 1 Font 16/Terminus Map View 55x47 Zoom Use 0% Tactical HUD 1 Map Filters NONE Filters NONE Steam 1 RUN: 7484ddfc-1a70-499d-9bbf-d3bf8c50d6a1